bitfinex-derivatives/quotes_ETHF0:USTF0_20251005
["timestamp","ask_amount","ask_price","bid_price","bid_amount"]
[1759698582091,0.33965552,4499.0,4498.9,1.65762743]
[1759698582292,0.33965552,4499.0,4498.9,4.86542743]
[1759698582890,0.00185552,4499.0,4498.9,4.86542743]
[1759698583996,0.33965552,4499.0,4498.9,4.86542743]
[1759698584196,0.47035552,4499.0,4498.9,4.86542743]
[1759698584391,0.90205552,4499.0,4498.9,4.81142743]
[1759698584596,0.90205552,4499.0,4498.9,3.5172]
[1759698584895,0.90205552,4499.0,4498.9,3.4308]
[1759698586297,0.90205552,4499.0,4498.9,3.5172]
[1759698587107,0.90205552,4499.0,4498.9,4.52335092]
[1759698591699,0.90205552,4499.0,4498.9,1.31555092]
[1759698597909,0.90205552,4499.0,4498.9,1.40125092]
[1759698606108,0.33965552,4499.0,4498.9,1.45485092]
[1759698610515,0.46585552,4499.0,4498.9,1.45485092]
[1759698614718,0.46585552,4499.0,4498.9,4.66265092]
[1759698615114,0.67095552,4499.0,4498.9,4.66265092]
[1759698615417,0.46585552,4499.0,4498.9,4.66265092]
[1759698617820,0.67095552,4499.0,4498.9,4.66265092]
[1759698618321,0.46585552,4499.0,4498.9,4.66265092]
[1759698618717,0.33965552,4499.0,4498.9,4.66265092]
[1759698619223,0.47505552,4499.0,4498.9,4.66265092]
[1759698624019,0.47505552,4499.0,4498.9,3.6565]
[1759698624226,0.68425552,4499.0,4498.9,4.60905092]
[1759698628731,5.89995552,4499.0,4498.9,3.2078]
[1759698629033,1.13464,4498.6,4498.5,1.59829591]
[1759698629235,1.13464,4498.6,4498.5,0.223]
[1759698630432,1.13466,4498.4,4498.3,0.00248382]
[1759698630733,1.13466,4498.4,4498.3,0.22548382]
[1759698631128,6.13466,4498.4,4498.3,0.22548382]
[1759698639729,5.7346,4498.4,4498.0,4.80609591]
[1759698639934,1.13268,4498.1,4498.0,4.80609591]
[1759698640135,1.13268,4498.1,4498.0,5.02909591]
[1759698640839,1.13268,4498.1,4498.0,5.03142337]
[1759698644436,0.7326,4498.1,4498.0,5.03142337]
[1759698645337,0.7326,4498.1,4498.0,5.11752337]
[1759698645732,0.3093,4498.1,4498.0,5.25742337]
[1759698645932,0.3093,4498.4,4498.3,0.62606]
[1759698646133,0.3093,4498.4,4498.3,1.85521092]
[1759698646432,0.5154,4498.4,4498.3,1.80141092]
[1759698646836,0.5154,4498.4,4498.3,1.40135092]
[1759698647036,0.5154,4498.4,4498.3,1.6027912]
[1759698647734,0.5154,4498.4,4498.3,1.6564912]
[1759698648737,0.5154,4498.4,4498.3,1.6027912]
[1759698652143,0.7387,4498.4,4498.3,1.6027912]
[1759698657243,0.7387,4498.4,4498.3,3.20108711]
[1759698658246,0.7387,4498.4,4498.3,1.6027912]
[1759698660141,0.7387,4498.4,4498.3,0.223]
[1759698662451,0.7387,4498.4,4498.3,0.309]
[1759698663552,0.7387,4498.4,4498.3,3.5168]
[1759698666951,0.7387,4498.4,4498.3,3.2078]
[1759698667153,0.7387,4498.4,4498.3,3.4308]
[1759698669856,0.7387,4498.4,4498.3,3.2078]
[1759698670157,0.7387,4498.4,4498.3,3.4308]
[1759698671354,0.7397,4498.4,4498.3,3.4308]
[1759698672255,0.7397,4498.4,4498.3,0.223]
[1759698672755,0.7397,4498.4,4498.3,1.59951162]
[1759698672948,0.70928,4498.1,4498.0,4.80963908]
[1759698673147,1.15058,4498.1,4498.0,5.03263908]
[1759698673353,1.15058,4498.1,4498.0,3.43312746]
[1759698680067,1.15058,4498.1,4498.0,3.51822746]
[1759698683764,0.3078,4498.3,4498.2,0.40007]
[1759698683967,0.40106,4498.4,4498.2,0.40007]
[1759698683968,0.40106,4498.4,4498.3,0.2234]
[1759698684166,0.70886,4498.4,4498.3,0.2234]
[1759698686770,0.3088,4498.4,4498.3,0.2234]
[1759698689368,0.5352,4498.4,4498.3,0.2234]
[1759698689572,0.5352,4498.4,4498.3,0.1702]
[1759698690074,0.5352,4498.4,4498.3,0.2234]
[1759698690274,0.5352,4498.4,4498.3,0.1702]
[1759698694374,0.7402,4498.4,4498.3,0.1702]
[1759698695174,0.7402,4498.4,4498.3,0.0851]
[1759698695379,1.16956,4498.3,4498.2,0.223]
[1759698701395,0.83198,4498.1,4498.0,0.00232746]
[1759698701589,1.16958,4498.1,4498.0,0.22532746]
[1759698702291,1.16958,4498.1,4498.0,1.82483908]
[1759698702988,1.16958,4498.1,4498.0,1.91073908]
[1759698705195,1.16958,4498.1,4498.0,3.20423028]
[1759698708990,1.16958,4498.1,4498.0,3.0031761]
[1759698721797,1.16958,4498.1,4498.0,1.91073908]
[1759698722003,0.7336,4497.9,4497.6,1.59951162]
[1759698722302,1.13371,4497.8,4497.7,0.223]
[1759698722501,0.82694,4497.4,4497.3,1.59951162]
[1759698722704,1.13374,4497.4,4497.3,2.82904864]
[1759698723104,1.13374,4497.4,4497.3,2.83110356]
[1759698723399,1.13374,4497.4,4497.3,1.23159194]
[1759698723600,1.13374,4497.4,4497.3,1.31769194]
[1759698725706,1.13374,4497.4,4497.3,1.23159194]
[1759698725999,0.7336,4497.4,4497.3,1.23159194]
[1759698726205,0.7336,4497.4,4497.3,1.40379194]
[1759698746520,0.3336,4497.8,4497.3,2.83110356]
[1759698746719,0.7712,4497.8,4497.7,1.17913702]
[1759698747015,0.7712,4497.8,4497.5,3.2078]
[1759698747016,0.40012,4497.7,4497.5,3.2078]
[1759698747222,1.17132,4497.7,4497.6,0.223]
[1759698749122,0.4376,4497.4,4497.3,1.60156654]
[1759698749327,2.17787702,4497.4,4497.3,0.00205492]
[1759698752524,7.17787702,4497.4,4497.3,0.00205492]
[1759698752925,7.68245349,4497.4,4497.3,0.00205492]
[1759698755322,7.17787702,4497.4,4497.3,0.00205492]
[1759698762437,2.17787702,4497.4,4497.3,0.00205492]
[1759698765443,0.61782,4496.6,4496.5,3.2078]
[1759698765634,1.15133,4496.4,4496.3,0.223]
[1759698766540,1.15133,4496.4,4496.3,0.22498992]
[1759698772741,1.15133,4496.4,4496.3,9.92e-06]
[1759698772942,0.73462,4495.4,4495.3,1.04602162]
[1759698773146,1.15817,4494.9,4494.8,0.0866]
[1759698773345,1.15817,4494.9,4494.8,0.223]
[1759698774040,1.16023259,4494.9,4494.8,0.22550028]
[1759698788759,0.33636259,4494.9,4494.8,1.66173959]
[1759698789461,0.75986259,4494.9,4494.8,0.39870028]
[1759698789661,0.75986259,4494.9,4494.8,0.31210028]
[1759698793255,0.75986259,4494.9,4494.8,0.22550028]
[1759698802473,0.81728,4494.8,4494.7,1.81682335]
[1759698802673,1.15698,4494.8,4494.7,1.59382335]
[1759698802869,1.15698,4494.8,4494.6,1.59382335]
[1759698802870,0.81728,4494.8,4494.6,1.59382335]
[1759698803070,0.7566,4494.7,4494.6,1.81682335]
[1759698803574,0.7566,4494.7,4494.6,0.22482181]
[1759698803872,0.7566,4494.7,4494.6,1.60334945]
[1759698804074,0.7566,4494.7,4494.6,0.00182181]
[1759698810078,0.5402,4494.0,4493.9,1.60152764]
[1759698810278,0.7566,4493.9,4493.8,3.2078]
[1759698810476,0.81736,4493.8,4493.7,1.60152764]
[1759698810776,0.81736,4493.8,4493.3,3.2078]
[1759698810777,1.15708,4493.6,4493.5,1.60152764]
[1759698811180,1.15708,4493.6,4493.5,1.60366722]
[1759698812170,1.15708,4493.6,4493.5,0.00213958]
[1759698815181,0.3397,4493.6,4493.5,0.18213958]
[1759698815380,0.5552,4493.6,4493.5,0.18213958]
[1759698818484,0.3397,4493.6,4493.5,0.18213958]
[1759698818684,0.4587,4494.0,4493.9,0.1802]
[1759698818890,0.4587,4494.0,4493.9,3.611]
[1759698819080,0.6742,4494.0,4493.9,3.611]
[1759698822088,0.4587,4494.0,4493.9,3.6673]
[1759698822284,0.3388,4494.5,4494.4,0.1802]
[1759698822491,0.3388,4494.5,4494.4,0.4032]
[1759698822791,0.8952,4494.5,4494.4,0.223]
[1759698823689,0.6742,4494.5,4494.4,0.223]
[1759698823990,0.4587,4494.5,4494.4,0.223]
[1759698824484,0.6742,4494.5,4494.4,0.223]
[1759698825083,0.4587,4494.5,4494.4,0.223]
[1759698825295,0.3354,4494.8,4494.7,0.40038]
[1759698825495,0.3354,4494.8,4494.7,3.42933426]
[1759698826896,0.3354,4494.8,4494.7,1.83231931]
[1759698828101,0.3354,4494.8,4494.7,3.42850077]
[1759698830999,0.3354,4494.8,4494.7,3.2273763]
[1759698831204,0.3354,4494.8,4494.7,6.4351763]
[1759698832404,0.3354,4494.8,4494.7,4.83899484]
[1759698834103,0.1348,4495.0,4494.7,4.83899484]
[1759698834299,0.32626259,4494.9,4494.7,4.83899484]
[1759698834494,0.00206259,4494.9,4494.7,4.83899484]
[1759698834804,0.3242,4494.8,4494.7,4.83899484]
[1759698837807,0.3242,4494.8,4494.7,6.4351763]
[1759698838201,0.3242,4494.8,4494.7,11.4351763]
[1759698840106,0.3242,4494.8,4494.7,9.83899484]
[1759698840107,0.5418,4494.8,4494.7,9.83899484]
[1759698840313,0.5418,4494.8,4494.7,4.83899484]
[1759698842908,0.5418,4494.8,4494.7,3.60818]
[1759698843110,0.7504,4494.8,4494.7,4.83899484]
[1759698843915,0.5418,4494.8,4494.7,4.83899484]
[1759698844116,0.3242,4494.8,4494.7,6.4351763]
[1759698845213,0.7504,4494.8,4494.7,5.42736146]
[1759698845412,0.5418,4494.8,4494.7,4.83899484]
[1759698845710,0.5418,4494.8,4494.7,6.4351763]
[1759698847012,0.7504,4494.8,4494.7,6.4351763]
[1759698848214,0.7504,4494.8,4494.7,4.83899484]
[1759698851819,0.3242,4494.8,4494.7,4.83899484]
[1759698852023,0.7504,4494.8,4494.7,4.83899484]
[1759698852424,0.7504,4494.8,4494.7,4.43861484]
[1759698855124,0.7504,4494.8,4494.7,6.41791581]
[1759698855427,0.3242,4494.8,4494.7,6.41791581]
[1759698855629,0.00206259,4494.9,4494.8,0.40038]
[1759698855823,0.00206259,4494.9,4494.8,2.40194069]
[1759698856222,0.32626259,4494.9,4494.8,2.40194069]
[1759698857831,0.00206259,4494.9,4494.8,0.40038]
[1759698858219,0.00206259,4494.9,4494.8,5.40038]
[1759698858520,0.33546259,4494.9,4494.8,5.40038]
[1759698859527,0.3334,4495.4,4495.3,0.40033]
[1759698859721,0.3334,4495.4,4495.3,4.83894484]
[1759698859924,0.1348,4495.5,4495.3,6.84011325]
[1759698860131,0.6801,4496.0,4495.9,0.40028]
[1759698860330,0.6801,4496.0,4495.9,1.63109484]
[1759698860528,0.46835649,4496.0,4495.9,1.53137484]
[1759698860724,0.1326,4496.5,4496.2,0.40025]
[1759698860725,0.3334,4496.3,4496.2,0.40025]
[1759698860929,0.1326,4496.5,4496.4,0.40023]
[1759698860930,0.466,4496.5,4496.4,0.40023]
[1759698861124,0.466,4496.5,4496.4,3.83103]
[1759698861332,0.1242,4497.5,4496.9,0.40019]
[1759698861531,0.40015,4497.4,4496.9,4.43861484]
[1759698861727,0.34060764,4497.0,4496.9,4.4401941]
[1759698861928,0.67400764,4497.0,4496.9,4.4401941]
[1759698863028,0.67400764,4497.0,4496.9,6.03808501]
[1759698863228,0.67400764,4497.0,4496.9,4.4401941]
[1759698863430,0.89900764,4497.0,4496.9,4.4401941]
[1759698863926,0.89900764,4497.0,4496.9,3.43237926]
[1759698864133,6.90682248,4497.0,4496.9,0.00157926]
[1759698864339,5.89900764,4497.0,4496.9,0.00157926]
[1759698864530,0.67400764,4497.0,4496.9,3.20937926]
[1759698869337,0.45990764,4497.0,4496.9,3.20937926]
[1759698869733,0.1242,4497.5,4496.9,3.21257926]
[1759698869935,0.4391,4497.8,4497.7,0.5468]
[1759698870141,0.4391,4497.8,4497.7,1.98391484]
[1759698870338,0.4391,4497.8,4497.7,1.43711484]
[1759698870848,0.44116595,4497.8,4497.7,1.43711484]
[1759698872638,0.44116595,4497.8,4497.7,0.223]
[1759698884261,0.44116595,4497.8,4497.7,0.103]
[1759698884661,0.43636595,4497.8,4497.7,0.103]
[1759698886062,1.44418079,4497.8,4497.7,0.103]
[1759698886264,0.43636595,4497.8,4497.7,0.103]
[1759698887257,0.43636595,4497.8,4497.3,1.40796484]
[1759698887463,0.75106595,4497.8,4497.7,0.223]
[1759698888357,1.15117595,4497.8,4497.7,0.223]
[1759698889060,1.15117595,4497.8,4497.6,0.223]
[1759698891260,0.75106595,4497.8,4497.6,0.223]
[1759698891564,1.15117595,4497.8,4497.6,0.223]
[1759698894063,0.7476,4497.6,4497.5,1.59789091]
[1759698894264,0.7476,4497.6,4497.5,1.82089091]
[1759698895168,0.7476,4497.6,4497.5,0.223]
[1759698901272,0.7476,4497.1,4497.0,2.00116841]
[1759698901467,0.7476,4497.1,4497.0,0.223]
[1759698902070,1.14777,4497.1,4497.0,0.223]
[1759698904270,0.1228,4497.0,4496.6,1.60022298]
[1759698904471,1.27062,4496.5,4496.4,3.2078]
[1759698904672,1.27062,4496.5,4496.4,3.4308]
[1759698905267,1.27062,4496.5,4496.4,3.43339743]
[1759698906680,1.27062,4496.5,4496.4,0.22559743]
[1759698907371,1.27062,4496.5,4496.4,2.147e-05]
[1759698907573,0.7476,4495.9,4495.8,3.2078]
[1759698907774,0.7476,4495.9,4495.8,3.4308]
[1759698908472,0.7476,4495.9,4495.8,3.43338035]
[1759698909171,1.14788,4495.9,4495.8,3.43338035]
[1759698909573,1.14788,4495.9,4495.8,0.22558035]
[1759698910168,1.14788,4495.9,4495.8,0.00258035]
[1759698910368,0.62063,4495.3,4495.2,3.2078]
[1759698910572,1.14793,4495.3,4495.2,3.2078]
[1759698910776,0.7476,4495.3,4495.1,0.223]
[1759698910978,0.7476,4495.3,4495.2,0.4261]
[1759698911382,0.7476,4495.3,4495.2,0.42870801]
[1759698912374,0.7476,4495.3,4495.2,0.00260801]
[1759698917282,0.8704,4495.0,4494.9,0.4368]
[1759698918178,0.8704,4495.0,4494.9,0.4392223]
[1759698918784,0.8704,4495.0,4494.9,0.2254223]
[1759698919581,0.8704,4495.0,4494.9,0.4319223]
[1759698923785,0.8704,4495.0,4494.9,0.2254223]
[1759698924287,0.8704,4495.0,4494.9,0.4319223]
[1759698924476,0.3147,4495.0,4494.9,0.9756223]
[1759698924683,0.1228,4496.0,4495.5,0.322]
[1759698924981,0.3356,4496.0,4495.9,0.7502]
[1759698925183,0.672,4496.0,4495.9,0.7502]
[1759698925480,0.672,4496.0,4495.6,0.223]
[1759698925685,0.672,4496.0,4495.7,0.40029]
[1759698926989,0.3364,4495.9,4495.8,0.40028]
[1759698927385,0.52303,4496.5,4496.3,0.40023]
[1759698927386,0.3364,4496.4,4496.3,0.40023]
[1759698927585,0.1228,4496.5,4496.3,1.83138348]
[1759698927786,0.3364,4496.4,4496.3,6.83138348]
[1759698929083,0.3364,4496.8,4496.7,0.40021]
[1759698929384,0.3364,4496.8,4496.7,5.03916348]
[1759698931087,0.3364,4497.4,4496.7,9.63895348]
[1759698931289,0.3364,4497.4,4497.3,1.60830348]
[1759698931487,0.5492,4497.4,4497.3,1.43115348]
[1759698933889,0.5492,4497.4,4497.3,1.60675789]
[1759698935085,0.7568,4497.4,4497.3,0.223]
[1759698935288,0.7759,4497.3,4497.2,3.2078]
[1759698935592,0.7759,4497.3,4497.2,3.4308]
[1759698935886,0.7759,4497.3,4496.7,0.57476966]
[1759698935887,0.1303,4497.0,4496.7,3.2078]
[1759698936087,0.7759,4496.8,4496.7,3.2078]
[1759698936287,0.7759,4496.8,4496.7,3.4308]
[1759698938693,0.7759,4496.8,4496.7,3.2078]
[1759698938894,0.7759,4496.8,4496.7,3.4308]
[1759698940493,0.7759,4496.8,4496.7,0.223]
[1759698945394,0.5548,4496.8,4496.7,0.223]
[1759698947301,0.3354,4496.8,4496.7,0.223]
[1759698948999,0.3334,4496.9,4496.8,0.4002]
[1759698949201,0.3334,4496.9,4496.8,1.60835348]
[1759698949403,0.3334,4496.9,4496.8,6.60835348]
[1759698951199,0.3334,4496.9,4496.8,6.20815348]
[1759698952996,0.3334,4496.9,4496.8,6.0069254]
[1759698955406,0.3334,4496.9,4496.8,7.59890935]
[1759698956301,0.3334,4496.9,4496.8,6.0069254]
[1759698960610,0.7786,4496.9,4496.8,6.0069254]
[1759698962103,0.7786,4496.9,4496.7,3.831]
[1759698962104,0.7786,4496.9,4496.7,3.4308]
[1759698962304,0.7786,4496.8,4496.7,0.223]
[1759698962504,0.7786,4496.8,4496.7,1.2299254]
[1759698963103,0.3334,4496.9,4496.8,0.4002]
[1759698965112,0.5547,4496.9,4496.8,0.4002]
[1759698965411,0.7786,4496.9,4496.8,0.4002]
[1759698970109,0.5547,4496.9,4496.8,0.4002]
[1759698972914,0.3334,4496.9,4496.8,0.4002]
[1759698973913,0.5547,4496.9,4496.8,0.4002]
[1759698978318,0.7786,4496.9,4496.8,0.4002]
[1759698981115,0.7786,4496.9,4496.8,2.40131304]
[1759698981515,3.2088,4498.4,4497.0,1.00044]
[1759698981721,0.12656219,4497.5,4497.4,0.7406]
[1759698982020,0.34336219,4497.5,4497.4,6.17251304]
[1759698982220,0.34336219,4497.5,4497.4,4.1714]
[1759698982723,0.34519248,4497.5,4497.4,4.1714]
[1759698983018,0.34519248,4497.5,4497.4,7.17943844]
[1759698983218,0.34519248,4497.5,4497.4,5.5784654]
[1759698983621,0.65829248,4497.5,4497.4,5.5784654]
[1759698985625,0.65829248,4497.5,4497.4,5.5768654]
[1759698986325,0.78779248,4497.5,4497.4,4.8670254]
[1759698987225,0.78779248,4497.5,4497.4,5.1767254]
[1759698989719,0.78779248,4497.5,4497.4,0.223]
[1759698989922,0.78779248,4497.5,4497.4,1.82066903]
[1759698990427,0.78779248,4497.5,4497.4,0.223]
[1759698991332,5.78779248,4497.5,4497.4,0.223]
[1759698991626,0.8788,4497.0,4496.9,3.2078]
[1759698991927,0.8788,4497.0,4496.9,3.4308]
[1759698993029,5.8788,4497.0,4496.9,0.223]
[1759698996733,0.8788,4497.0,4496.9,0.7652]
[1759698997332,0.8788,4497.0,4496.9,0.4284]
[1759698998835,0.8788,4497.0,4496.9,0.223]
[1759699002937,0.8788,4497.0,4496.9,0.7652]
[1759699003238,0.8788,4497.0,4496.9,0.4284]
[1759699004433,0.8788,4497.0,4496.9,0.223]
[1759699012243,0.8788,4497.0,4496.9,0.7541]
[1759699012634,0.8788,4497.0,4496.9,0.4416]
[1759699013742,0.8788,4497.0,4496.9,0.7541]
[1759699013937,0.5325,4497.0,4496.9,0.97]
[1759699014141,0.5406,4497.4,4497.3,0.747]
[1759699014346,0.7472,4497.4,4497.3,0.97]
[1759699017943,0.7472,4497.4,4497.3,0.6575]
[1759699019653,0.7472,4497.4,4497.3,0.97]
[1759699030752,0.7472,4497.4,4497.3,0.223]
[1759699031054,0.7472,4497.1,4497.0,1.59766903]
[1759699031257,0.7472,4497.1,4497.0,0.223]
[1759699032058,1.14737,4497.1,4497.0,0.223]
[1759699033257,0.7472,4497.1,4497.0,0.97]
[1759699038557,0.3242,4497.3,4497.1,0.73567]
[1759699038758,3.7368,4497.4,4497.3,1.16765]
[1759699039060,3.7368,4497.4,4497.3,1.39065]
[1759699039757,3.7368,4497.4,4497.3,0.9905]
[1759699039962,3.9506,4497.4,4497.3,0.223]
[1759699040160,1.14297,4497.1,4496.9,1.59766903]
[1759699040363,0.7428,4496.8,4496.7,1.59766903]
[1759699040561,0.7428,4496.8,4496.7,1.82066903]
[1759699040959,0.7428,4496.8,4496.7,2.02846903]
[1759699043264,0.7428,4496.8,4496.7,2.36396903]
[1759699044366,0.81876,4497.3,4497.2,0.432]
[1759699044667,0.81876,4497.3,4497.2,0.2675]
[1759699044865,1.14296,4497.3,4497.2,0.0209]
[1759699046061,0.40017,4497.2,4497.0,0.223]
[1759699046267,0.7428,4497.1,4497.0,0.2439]
[1759699046562,0.7428,4497.1,4497.0,0.2648]
[1759699047170,0.7428,4497.1,4497.0,0.2439]
[1759699048070,0.7428,4497.1,4497.0,0.223]
[1759699059973,0.7428,4497.1,4497.0,0.2445]
[1759699063172,0.7428,4497.1,4497.0,0.223]
[1759699066686,0.4377,4496.9,4496.8,1.59766903]
[1759699066876,0.7549,4496.9,4496.8,1.63908965]
[1759699067082,1.15514,4496.3,4496.2,2.00111304]
[1759699067283,0.7549,4495.8,4495.7,4.8026713]
[1759699067577,0.4377,4495.8,4495.7,0.0217]
[1759699068181,0.4377,4495.8,4495.7,0.0434]
[1759699068182,0.7527,4495.8,4495.7,0.0434]
[1759699070584,0.7527,4495.8,4495.7,0.0217]
[1759699071782,0.7527,4495.8,4495.6,0.223]
[1759699072783,0.1332,4496.0,4495.6,0.223]
[1759699072784,0.7607,4495.7,4495.6,0.223]
[1759699079699,0.7607,4495.7,4495.6,0.2664]
[1759699081493,0.7607,4495.3,4494.9,1.59939649]
[1759699081794,0.885,4495.0,4494.9,1.05364264]
[1759699081993,0.885,4495.0,4494.9,1.27664264]
[1759699084102,0.664,4495.0,4494.9,1.27664264]
[1759699086605,0.885,4495.0,4494.9,1.27664264]
[1759699094410,0.4393,4495.0,4494.9,1.29024264]
[1759699095112,0.315,4495.0,4494.9,2.88721683]
[1759699095308,0.315,4495.0,4494.9,1.29024264]
[1759699097613,0.4479,4495.0,4494.9,1.29024264]
[1759699100011,0.315,4495.0,4494.9,1.29024264]
[1759699100213,0.3371,4495.5,4495.4,0.45702]
[1759699100413,0.3606,4496.5,4496.4,0.82643]
[1759699100717,0.569,4496.5,4496.4,2.05725034]
[1759699100918,0.9061,4496.5,4496.4,2.05725034]
[1759699101316,0.6977,4496.5,4496.4,2.05725034]
[1759699101520,0.4703,4496.5,4496.4,2.20395034]
[1759699101721,0.6977,4496.5,4496.4,2.20395034]
[1759699102220,0.6977,4496.5,4496.4,3.65429385]
[1759699102519,0.6977,4496.5,4496.4,2.05725034]
[1759699102711,0.6977,4496.5,4496.4,2.20395034]
[1759699103215,0.6977,4496.5,4496.4,3.80035789]
[1759699104122,0.4703,4496.5,4496.4,2.20395034]
[1759699104325,0.4703,4496.5,4496.4,3.79966258]
[1759699104614,0.2274,4497.1,4497.0,0.4262]
[1759699104817,0.2274,4497.1,4497.0,1.93662034]
[1759699105320,0.5645,4497.1,4497.0,1.93662034]
[1759699105519,0.5645,4497.1,4497.0,2.33680034]
[1759699106214,0.3371,4497.1,4497.0,2.33680034]
[1759699106414,0.5645,4497.1,4497.0,2.33680034]
[1759699106612,0.3371,4497.1,4497.0,2.33680034]
[1759699106817,0.00183029,4497.5,4497.4,1.10594]
[1759699107016,0.00183029,4497.5,4497.4,2.33676034]
[1759699107213,0.33893029,4497.5,4497.4,2.33676034]
[1759699107515,0.33893029,4497.5,4497.4,5.54456034]
[1759699107713,0.00183029,4497.5,4497.4,5.54456034]
[1759699108418,0.33893029,4497.5,4497.4,5.54456034]
[1759699109620,0.33893029,4497.5,4497.4,5.72512131]
[1759699110814,0.56633029,4497.5,4497.4,5.72512131]
[1759699114623,0.56633029,4497.5,4497.0,0.1221]
[1759699114624,0.3174,4497.4,4496.9,3.2078]
[1759699114825,0.8746,4497.0,4496.9,4.04208]
[1759699115021,0.8746,4497.0,4496.9,4.0400488]
[1759699115222,0.8746,4497.0,4496.9,3.8284488]
[1759699115623,0.8746,4497.0,4496.9,3.4308]
[1759699115931,0.8746,4497.0,4496.9,0.223]
[1759699117634,0.8746,4497.0,4496.9,0.6571]
[1759699117824,0.8746,4497.0,4496.9,1.33669]
[1759699118136,0.8746,4497.0,4496.9,0.6571]
[1759699126440,0.8746,4497.0,4496.9,0.223]
[1759699131239,0.8746,4497.0,4496.9,1.81854032]
[1759699132638,0.4456,4497.0,4496.9,2.04214032]
[1759699132844,0.3174,4497.0,4496.9,0.9363]
[1759699133942,0.2064,4497.4,4497.3,0.40015]
[1759699134148,0.5402,4497.4,4497.3,3.94148454]
[1759699134544,0.749,4497.4,4497.3,3.94148454]
[1759699135143,0.5402,4497.4,4497.3,3.94148454]
[1759699135444,0.5402,4497.4,4497.3,2.34427034]
[1759699137050,0.5402,4497.4,4497.3,1.33645]
[1759699140244,0.749,4497.4,4497.3,1.05695]
[1759699140443,0.749,4497.4,4497.3,1.33645]
[1759699140850,0.749,4497.4,4497.3,0.6568]
[1759699141750,0.749,4497.4,4497.3,0.223]
[1759699142649,0.749,4497.4,4497.3,0.9363]
[1759699143153,0.749,4497.4,4497.3,0.6568]
[1759699143852,0.749,4497.4,4497.3,0.9363]
[1759699145553,0.5402,4497.4,4497.3,0.9363]
[1759699145752,0.00183029,4497.5,4497.4,1.11344]
[1759699146258,0.00183029,4497.5,4497.4,3.11455304]
[1759699149552,0.6731,4498.0,4497.9,2.32151668]
[1759699149754,0.6731,4498.0,4497.9,4.14157573]
[1759699150352,0.3338,4498.0,4497.9,4.14157573]
[1759699150554,0.33610831,4498.0,4497.9,4.14157573]
[1759699151056,0.00230831,4498.0,4497.9,4.14157573]
[1759699151254,0.33610831,4498.0,4497.9,2.54451668]
[1759699151756,0.66960831,4498.0,4497.9,2.54451668]
[1759699152254,0.54250831,4498.0,4497.9,2.54451668]
[1759699152761,0.87840831,4498.0,4497.9,2.26501668]
[1759699153257,0.87840831,4498.0,4497.9,0.4338]
[1759699153459,0.87840831,4498.0,4497.9,2.0432678]
[1759699153956,0.87840831,4498.0,4497.9,2.5329678]
[1759699154352,0.87840831,4498.0,4497.9,3.74108448]
[1759699154756,0.66960831,4498.0,4497.9,3.74108448]
[1759699154957,0.33610831,4498.0,4497.9,3.74108448]
[1759699155257,0.33610831,4498.0,4497.9,2.14441668]
[1759699155456,0.00230831,4498.0,4497.9,2.14441668]
[1759699159062,0.2095,4499.4,4499.3,0.81368]
[1759699159253,0.2095,4499.4,4499.3,2.52509668]
[1759699159553,3.2078,4500.4,4499.3,2.52509668]
[1759699159756,0.2095,4501.8,4501.7,0.2089]
[1759699159957,0.42432199,4501.8,4501.7,0.21655704]
[1759699160152,0.42432199,4501.8,4501.7,0.00221662]
[1759699160459,0.42432199,4501.8,4500.4,1.80476798]
[1759699160460,0.322,4500.5,4500.4,1.80476798]
[1759699160650,3.2078,4501.4,4500.6,0.3223]
[1759699160849,0.3998,4501.3,4501.2,1.19350443]
[1759699161052,3.2078,4501.4,4501.2,1.19350443]
[1759699161252,3.2078,4501.4,4501.3,0.3223]
[1759699161452,3.2078,4501.4,4501.3,0.32454128]
[1759699161855,8.2078,4501.4,4501.3,0.22524128]
[1759699162860,8.2078,4501.4,4501.3,0.54754128]
[1759699166456,3.2078,4501.4,4501.3,0.96124128]
[1759699166658,3.2078,4501.4,4501.3,0.54754128]
[1759699166856,8.2078,4501.4,4501.3,0.32454128]
[1759699167460,8.2078,4501.4,4501.3,0.00224128]
[1759699167659,0.3998,4501.3,4501.1,0.3223]
[1759699167860,0.3998,4501.3,4501.2,0.3223]
[1759699168659,0.39982,4501.1,4501.0,0.223]
[1759699168968,0.39982,4501.1,4501.0,0.678236]
[1759699171762,5.39982,4501.1,4501.0,0.132936]
[1759699171968,5.39982,4501.1,4501.0,0.455236]
[1759699180281,5.39982,4501.1,4501.0,0.664136]
[1759699181776,0.39982,4501.1,4501.0,0.664136]
[1759699184380,0.3998,4501.3,4501.2,0.2224]
[1759699184878,0.3998,4501.3,4501.2,0.7685]
[1759699187383,0.3998,4501.3,4501.2,1.56259078]
[1759699188185,3.2078,4501.4,4501.3,0.5247]
[1759699188685,3.4978,4501.4,4501.3,0.0247]
[1759699188885,3.7764,4501.4,4501.3,0.0247]
[1759699189286,4.17619,4501.4,4501.3,0.0247]
[1759699189486,4.17619,4501.4,4501.3,1.21820443]
[1759699190587,4.17619,4501.4,4501.3,1.53020443]
[1759699191287,3.89759,4501.4,4501.3,1.74070443]
[1759699191782,4.17619,4501.4,4501.3,1.74070443]
[1759699192388,4.17619,4501.4,4501.3,1.53020443]
[1759699194392,4.17619,4501.4,4501.3,0.3367]
[1759699194987,4.17619,4501.4,4501.3,0.5472]
[1759699195592,3.89759,4501.4,4501.3,0.5472]
[1759699196189,4.17619,4501.4,4501.3,0.5472]
[1759699198188,3.81508159,4501.4,4501.3,0.5472]
[1759699200291,3.41529159,4501.4,4501.3,0.5472]
[1759699201789,3.41529159,4501.4,4501.1,1.59586798]
[1759699202092,0.7638,4501.2,4501.1,2.01906798]
[1759699202284,0.2134,4501.2,4501.1,2.01906798]
[1759699202686,2.84669159,4501.4,4501.1,2.01906798]
[1759699202996,3.38599159,4501.4,4501.3,2.01906798]
[1759699203996,0.2134,4501.4,4501.3,2.33106798]